bitfinex/quotes_ETHUSD_20220218
["timestamp","ask_amount","ask_price","bid_price","bid_amount"]
[1645164992972,1.99930444,2906.0,2905.6,1.07096946]
[1645164993175,1.99930444,2906.0,2905.7,1.06660108]
[1645164993374,1.99930444,2906.0,2905.4,0.00315737]
[1645164993877,1.02211146,2905.5,2905.3,0.00417443]
[1645164994175,1.02211146,2905.5,2905.4,1.0666489]
[1645164994578,1.02211146,2905.5,2905.2,1.0666489]
[1645164994821,1.02211146,2905.5,2905.2,1.07082333]
[1645164995019,1.02211146,2905.5,2905.3,1.0666489]
[1645164995218,1.02211146,2905.5,2905.3,1.07082333]
[1645164995425,1.02211146,2905.5,2905.4,1.0666489]
[1645164996025,1.84656974,2906.0,2905.4,1.0666489]
[1645164996225,1.69930444,2906.0,2905.5,0.00417443]
[1645164996422,0.1719,2905.9,2905.5,0.00417443]
[1645164996623,0.1719,2905.9,2905.6,1.0666489]
[1645164996823,0.1719,2905.9,2905.7,1.0666489]
[1645164997025,0.1719,2905.9,2905.8,1.0666489]
[1645164997326,0.55398869,2905.9,2905.8,1.0666489]
[1645164997528,0.38208869,2905.9,2905.6,0.00417443]
[1645164997828,0.38208869,2905.9,2905.7,1.06980608]
[1645164998032,0.38208869,2905.9,2905.8,1.0666489]
[1645164998468,0.38208869,2905.9,2905.7,0.00315718]
[1645164998669,0.38208869,2905.9,2905.2,1.7208985]
[1645164998869,0.38208869,2905.9,2905.7,0.00315718]
[1645164999870,0.38208869,2905.9,2905.3,0.00417443]
[1645164999871,0.38208869,2905.9,2905.5,1.07082333]
[1645165000071,0.38208869,2905.9,2905.7,0.00315721]
[1645165000969,0.38208869,2905.9,2905.6,1.0666489]
[1645165001169,0.38208869,2905.9,2905.7,1.0666489]
[1645165001370,0.38208869,2905.9,2905.8,1.0666489]
[1645165001571,0.38208869,2905.9,2905.7,0.00315721]
[1645165001572,0.38337474,2905.9,2905.7,0.00315721]
[1645165001870,2.95527896,2906.0,2905.7,0.00315721]
[1645165002072,0.38342159,2905.9,2905.7,0.00315721]
[1645165002325,0.38342159,2905.9,2905.7,1.0666489]
[1645165002523,0.38342159,2905.9,2905.8,1.0666489]
[1645165002921,0.38342159,2905.9,2905.7,0.00315718]
[1645165003522,0.38342159,2905.9,2905.7,1.0666489]
[1645165003721,0.38342159,2905.9,2905.8,1.0666489]
[1645165004322,0.38342159,2905.9,2905.7,0.00315721]
[1645165004723,0.38342159,2905.9,2905.5,1.0666489]
[1645165004924,0.38342159,2905.9,2905.7,0.00315721]
[1645165005326,0.38342159,2905.9,2905.7,1.06980611]
[1645165005623,0.38342159,2905.9,2905.8,1.0666489]
[1645165006069,0.38342159,2905.9,2905.7,0.00315721]
[1645165007072,0.38342159,2905.9,2905.5,1.0666489]
[1645165007271,0.38342159,2905.9,2905.6,1.07082333]
[1645165007471,0.38342159,2905.9,2905.7,1.0666489]
[1645165007675,0.38342159,2905.9,2905.8,1.0666489]
[1645165007872,1.19406018,2905.3,2905.2,0.6542496]
[1645165008099,1.57748177,2905.3,2905.2,1.07384627]
[1645165008277,1.87748177,2905.3,2905.2,1.07811889]
[1645165008872,2.17748177,2905.3,2905.2,1.07811889]
[1645165009923,1.57748177,2905.3,2905.2,1.07811889]
[1645165011283,1.57748177,2905.3,2905.1,0.00315492]
[1645165011284,5.0,2905.2,2905.1,0.00315492]
[1645165011525,4.247,2905.2,2904.6,0.6542496]
[1645165011923,1.0,2905.1,2904.6,0.6542496]
[1645165012124,0.85717604,2904.7,2904.6,0.6542496]
[1645165012329,0.85717604,2904.7,2904.5,0.6542496]
[1645165012830,0.85717604,2904.7,2904.5,0.70570952]
[1645165013329,0.85717604,2904.7,2904.5,0.70755085]
[1645165013572,0.85717604,2904.7,2904.5,0.00184133]
[1645165014171,0.85717604,2904.7,2904.4,0.6542496]
[1645165014569,0.85717604,2904.7,2904.5,0.00315533]
[1645165015370,0.85717604,2904.7,2904.4,0.6542496]
[1645165015770,0.85717604,2904.7,2904.5,0.00315533]
[1645165016571,0.85717604,2904.7,2904.4,0.6542496]
[1645165016572,0.85717604,2904.7,2904.3,0.6542496]
[1645165016976,0.85717604,2904.7,2904.2,0.6542496]
[1645165017221,0.85717604,2904.7,2904.5,0.00315533]
[1645165017834,0.85717604,2904.7,2904.1,0.6542496]
[1645165018028,0.1721,2904.6,2904.0,0.6542496]
[1645165018229,0.1721,2904.6,2904.5,0.00315533]
[1645165018885,1.1721,2904.6,2904.5,0.00315533]
[1645165019039,1.1721,2904.6,2903.9,0.6542496]
[1645165019227,0.1721,2904.6,2903.9,0.6542496]
[1645165019427,1.1721,2904.6,2904.4,0.00315537]
[1645165019627,0.1721,2904.6,2904.4,0.00315537]
[1645165019827,1.1721,2904.6,2904.4,0.00315537]
[1645165020031,0.1721,2904.6,2904.4,0.00315537]
[1645165020228,1.1721,2904.6,2903.9,0.6542496]
[1645165020431,1.1721,2904.6,2903.8,0.6542496]
[1645165020633,1.1721,2904.6,2904.4,0.0031554]
[1645165020830,0.93526247,2904.5,2904.4,0.0031554]
[1645165021071,1.23526247,2904.5,2904.4,0.0031554]
[1645165021470,1.23526247,2904.5,2904.2,0.02633006]
[1645165021675,1.23526247,2904.5,2904.3,0.00315543]
[1645165021873,0.499,2904.4,2904.3,0.00315543]
[1645165022679,0.499,2904.4,2904.2,0.02633006]
[1645165022881,0.1721,2904.3,2904.2,0.02948555]
[1645165023113,0.499,2904.4,2904.2,0.02948555]
[1645165023882,0.499,2904.4,2904.2,0.02633006]
[1645165024083,0.499,2904.4,2904.2,0.02948558]
[1645165024285,1.00287356,2904.4,2904.2,0.02948558]
[1645165025121,1.00287356,2904.4,2904.2,0.02633006]
[1645165025321,1.00287356,2904.4,2904.2,0.02948558]
[1645165026373,1.10262837,2903.9,2903.7,0.0029699]
[1645165026524,1.10262837,2903.9,2903.7,0.01559389]
[1645165027527,1.10262837,2903.9,2903.7,0.0029699]
[1645165027726,1.10262837,2903.9,2903.7,0.00612574]
[1645165027927,4.10672356,2904.4,2903.7,0.00612574]
[1645165027928,1.1807859,2904.4,2903.7,0.00612574]
[1645165028328,0.3,2904.5,2903.7,0.01038008]
[1645165028590,1.799,2904.6,2903.7,0.00722424]
[1645165028591,2.099,2904.6,2903.7,0.00722424]
[1645165028789,1.799,2904.6,2903.7,0.00722424]
[1645165028992,0.86659581,2904.4,2904.0,0.00315565]
[1645165029192,2.3061,2904.9,2904.0,0.00315565]
[1645165029394,1.134,2904.9,2904.0,0.00315565]
[1645165029790,1.434,2904.9,2904.0,0.00315565]
[1645165030090,0.85200342,2904.6,2904.3,0.00315543]
[1645165031090,0.85200342,2904.6,2903.9,0.03070144]
[1645165031291,0.85200342,2904.6,2904.3,0.00315543]
[1645165032323,0.85200342,2904.6,2904.3,0.00425434]
[1645165032526,0.85200342,2904.6,2904.4,1.02196266]
[1645165032724,0.85200342,2904.6,2904.5,1.02196266]
[1645165032922,0.85200342,2904.6,2904.4,1.026217]
[1645165033125,0.85200342,2904.6,2904.5,1.02196266]
[1645165033323,0.85200342,2904.6,2904.5,1.026217]
[1645165033923,0.85200342,2904.6,2904.5,0.00425434]
[1645165034123,1.15200342,2904.6,2904.4,0.00315537]
[1645165034727,2.01330342,2904.6,2904.3,0.99336151]
[1645165034938,2.01330342,2904.6,2904.4,0.0031554]
[1645165035128,2.87461342,2904.6,2904.4,0.99652881]
[1645165035324,2.87461342,2904.6,2904.4,0.0031554]
[1645165035325,1.0,2904.5,2904.4,0.0031554]
[1645165035988,1.3,2904.5,2904.1,0.9935532]
[1645165036173,0.1721,2904.4,2904.3,0.00315543]
[1645165036875,0.499,2904.5,2904.3,0.00315543]
[1645165037075,0.499,2904.5,2904.1,0.00425434]
[1645165037284,0.499,2904.5,2904.2,0.99345378]
[1645165037477,0.499,2904.5,2904.2,0.99660927]
[1645165037677,0.499,2904.5,2904.2,0.00740983]
[1645165037876,0.499,2904.5,2904.2,0.00315549]
[1645165038117,0.799,2904.5,2904.2,0.00315549]
[1645165038276,1.499,2904.5,2904.0,0.00425434]
[1645165038477,1.499,2904.5,2904.1,0.99339302]
[1645165038677,1.499,2904.5,2904.2,0.00315549]
[1645165038877,1.799,2904.5,2904.2,1.00080285]
[1645165039075,1.799,2904.5,2904.2,0.00315549]
[1645165039277,1.799,2904.5,2904.2,0.00740983]
[1645165039477,1.799,2904.5,2903.6,1.03133626]
[1645165039724,0.499,2904.5,2904.2,0.00315549]
[1645165039929,0.85200342,2904.6,2904.2,0.00315549]
[1645165040123,1.0,2905.0,2904.2,0.9963877]
[1645165040325,0.45753075,2904.9,2904.2,1.00064204]
[1645165040522,0.75753075,2904.9,2904.3,0.99748655]
[1645165040723,1.3,2905.0,2904.4,0.99323221]
[1645165040924,0.45756953,2904.9,2904.5,0.00425434]
[1645165041438,3.85957952,2905.2,2904.6,0.99314265]
[1645165041439,0.51507952,2905.2,2904.6,0.99314265]
[1645165041625,0.55884042,2905.7,2904.7,0.99314265]
[1645165041928,0.4575547,2905.6,2904.8,0.00425434]
[1645165042122,0.4575547,2905.6,2904.9,0.99314265]
[1645165042374,1.08823697,2905.1,2905.0,0.00315506]
[1645165042934,1.54595298,2905.1,2905.0,0.00315506]
[1645165043127,1.54595298,2905.1,2904.5,0.00425434]
[1645165043326,1.54595298,2905.1,2904.6,0.99351991]
[1645165043327,1.08823697,2905.1,2904.6,0.99351991]
[1645165043577,1.08823697,2905.1,2904.9,0.00315505]
[1645165044079,0.45780004,2905.0,2904.9,0.00315505]
[1645165044279,1.08823697,2905.1,2904.5,0.99349407]
[1645165044483,1.08823697,2905.1,2904.6,0.00425434]
[1645165044679,1.08823697,2905.1,2904.9,0.00315508]
[1645165045478,1.08823697,2905.1,2904.5,0.99363274]
[1645165045678,1.08823697,2905.1,2904.6,0.00425434]
[1645165045880,0.45792905,2905.0,2904.9,0.00315508]
[1645165046679,0.45792905,2905.0,2904.6,0.00425434]
[1645165046915,0.45792905,2905.0,2904.4,0.00425434]
[1645165047080,0.9068755,2904.6,2904.5,0.99413948]
[1645165047526,0.9068755,2904.6,2904.5,0.99839236]
[1645165048134,0.98130352,2905.3,2904.8,0.33687999]
[1645165048329,0.45832674,2905.2,2904.8,0.33687999]
[1645165048530,0.1721,2905.1,2904.9,0.00425288]
[1645165048728,0.45832674,2905.0,2904.9,0.00425288]
[1645165049528,0.45832674,2905.1,2904.9,0.00425288]
[1645165049730,0.08674836,2905.2,2904.9,0.00425288]
[1645165049731,0.45832674,2905.0,2904.9,0.00425288]
[1645165050333,0.45832674,2905.1,2904.9,0.00425288]
[1645165050529,0.45832674,2905.0,2904.9,0.00425288]
[1645165050729,0.45832674,2905.1,2904.9,0.00425288]
[1645165050970,0.45832674,2905.0,2904.9,0.00425288]
[1645165051372,0.45832674,2905.0,2904.9,1.00009582]
[1645165051975,0.45832674,2905.0,2904.9,0.00425288]
[1645165052382,0.45832674,2905.0,2904.9,1.00109607]
[1645165052578,0.45959533,2905.0,2904.9,1.00207857]
[1645165052984,0.45959533,2905.1,2904.9,1.00207857]
[1645165053180,0.45959533,2905.0,2904.9,0.00425288]
[1645165053577,0.45959533,2905.1,2904.9,0.9853669]
[1645165053782,0.45959533,2905.1,2905.0,0.98111402]
[1645165053983,0.45959533,2905.1,2904.9,0.00425288]
[1645165053984,0.45959533,2905.1,2904.9,0.9853669]
[1645165054183,0.45959533,2905.1,2905.0,0.98111402]
[1645165056027,2.2804607,2905.1,2904.9,0.00740793]
[1645165056227,2.45158266,2905.0,2904.9,0.00740793]
[1645165056426,2.45158266,2905.0,2904.9,0.00425288]
[1645165056627,2.45158266,2905.0,2904.9,0.00740796]
[1645165056826,3.45158266,2905.0,2904.9,0.00740796]
[1645165057428,2.79293533,2905.0,2904.9,0.00740796]
[1645165057628,2.79293533,2905.0,2904.9,0.00425288]
[1645165058028,2.79293533,2905.0,2904.9,0.98193789]
[1645165058235,2.79293533,2905.0,2904.8,0.3400351]
[1645165058468,0.45959533,2904.9,2904.8,0.3400351]
[1645165058668,0.45959533,2904.9,2904.8,0.33687999]
[1645165058921,1.0,2904.9,2904.8,0.33687999]
[1645165059068,0.47706868,2904.9,2904.8,1.31879584]
[1645165059267,0.77706868,2904.9,2904.8,1.31879584]
[1645165060273,2.43729868,2904.9,2904.8,1.31879584]
[1645165060474,3.35479437,2904.9,2904.7,0.00315518]
[1645165060673,0.1721,2904.8,2904.7,0.00315518]
[1645165060878,1.6711,2904.8,2904.7,0.00315518]
[1645165061074,2.32974733,2904.8,2904.7,0.00315518]
[1645165061376,0.86133,2904.6,2904.2,0.01687558]
[1645165061574,0.499,2904.5,2904.2,0.01262285]
[1645165062434,0.499,2904.5,2903.8,0.00425273]
[1645165062634,0.499,2904.5,2904.2,0.00315549]
[1645165062831,1.12939285,2904.4,2904.2,0.00315549]
[1645165063633,1.12939285,2904.4,2903.8,0.65850233]
[1645165063833,1.12939285,2904.4,2904.2,0.00315552]
[1645165064835,1.12939285,2904.4,2903.8,0.65850233]
[1645165065033,1.12939285,2904.4,2904.2,0.00315552]
[1645165066076,2.36028,2904.7,2903.8,0.65850233]
[1645165066077,1.08907266,2903.9,2903.8,0.65850233]
[1645165068074,0.5202748,2904.4,2904.3,0.36389827]
[1645165068374,1.38865855,2904.4,2904.3,0.368151]
[1645165078029,1.68865855,2904.4,2904.3,0.368151]
[1645165079232,1.98865855,2904.4,2904.3,0.368151]
[1645165080533,2.49825712,2904.4,2904.3,1.31781204]
[1645165080971,3.49825712,2904.4,2904.3,1.31781204]
[1645165081171,2.49825712,2904.4,2904.3,1.31781204]
[1645165081371,3.49825712,2904.4,2904.3,1.31781204]
[1645165082777,3.19825712,2904.4,2904.3,1.31781204]
[1645165083177,3.49825712,2904.4,2904.3,0.368151]
[1645165083376,5.0,2904.3,2904.2,0.00315549]
[1645165083579,26.75959857,2904.3,2904.2,0.00315549]
[1645165083778,29.97506476,2904.3,2904.2,0.00315549]
[1645165084082,11.44808476,2904.3,2903.9,0.91821446]
[1645165084279,0.80959857,2904.2,2904.1,0.00315556]
[1645165084479,1.60859857,2904.2,2904.1,0.92137002]
[1645165084735,2.47008857,2904.2,2904.1,0.92137002]
[1645165085134,2.47008857,2904.2,2904.1,0.91821446]
[1645165086333,3.33158857,2904.2,2903.7,0.0029699]
[1645165086533,0.50959857,2904.1,2903.7,0.0029699]
[1645165086736,0.50959857,2904.1,2904.0,0.00315562]
[1645165086737,1.50959857,2904.1,2904.0,0.00315562]
[1645165086933,2.00859857,2904.1,2904.0,0.00315562]
[1645165087534,2.00859857,2904.1,2903.8,0.90846691]
[1645165087732,0.50959857,2904.0,2903.9,0.90846691]
[1645165087934,1.00661604,2904.0,2903.9,0.00315568]
[1645165088133,2.06388934,2904.0,2903.9,0.00315568]
[1645165088776,2.06388934,2904.0,2903.7,0.0029699]
[1645165088977,1.5562733,2904.0,2903.8,0.00315575]
[1645165089777,1.8562733,2904.0,2903.8,0.00315575]
[1645165089978,1.8562733,2904.0,2903.7,0.0029699]
[1645165090180,1.5562733,2904.0,2903.8,0.00315578]
[1645165090780,1.8562733,2904.0,2903.8,0.00078038]
[1645165091183,1.3572733,2904.0,2903.9,0.0264471]
[1645165096370,1.0572733,2904.0,2903.7,0.03257291]
[1645165096770,1.3572733,2904.0,2903.7,0.03257291]
[1645165096972,1.6572733,2904.0,2903.7,0.03257291]
[1645165097178,1.6572733,2904.0,2903.7,0.029417]
[1645165097376,1.8293733,2904.0,2903.7,0.03257286]
[1645165099582,1.8293733,2904.0,2903.7,0.029417]
[1645165099834,2.79024925,2904.0,2903.7,0.03125678]
[1645165100028,1.8293733,2904.0,2903.7,0.03125678]
[1645165100728,1.8293733,2904.0,2903.7,0.029417]
[1645165100927,1.8293733,2904.0,2903.7,0.03125678]
[1645165101130,1.8293733,2904.0,2903.9,0.0264471]
[1645165102335,1.5293733,2904.0,2903.9,0.0264471]
[1645165102531,1.3572733,2904.0,2903.9,0.0264471]
[1645165102731,1.0572733,2904.0,2903.9,0.0264471]
[1645165105373,1.3572733,2904.0,2903.9,0.0264471]
[1645165105572,1.6572733,2904.0,2903.9,0.0264471]
[1645165105772,1.2293733,2904.0,2903.9,0.0264471]
[1645165106271,1.2293733,2904.0,2903.7,0.03246841]
[1645165106472,1.0572733,2904.0,2903.7,0.03246841]
[1645165106872,1.0572733,2904.0,2903.7,0.029417]
[1645165107119,1.0572733,2904.0,2903.7,0.03246837]
[1645165107332,1.3572733,2904.0,2903.7,0.03246837]
[1645165107933,0.55373806,2903.9,2903.7,0.029417]
[1645165108333,0.55373806,2903.9,2903.7,0.03246837]
[1645165109137,0.55373806,2903.9,2903.7,0.029417]
[1645165109334,0.85373806,2903.9,2903.7,0.029417]
[1645165109536,0.55373806,2903.8,2903.7,0.03235719]
[1645165110235,0.55373806,2903.8,2903.7,0.93675483]
[1645165110436,0.55373806,2903.8,2903.7,0.03365007]
[1645165110637,0.55373806,2903.8,2903.7,0.029417]
[1645165111579,0.55373806,2903.8,2903.7,0.93356097]
[1645165111778,0.55373806,2903.8,2903.7,0.93779404]
[1645165112285,0.55373806,2903.8,2903.7,0.03365007]
[1645165112498,1.51555546,2903.5,2903.2,0.01176264]
[1645165112690,1.51555546,2903.5,2903.3,0.90488103]
[1645165113082,1.51555546,2903.5,2903.4,0.90488103]
[1645165113284,2.06878572,2903.5,2903.4,0.90488103]
[1645165113482,2.06878572,2903.5,2903.0,0.90488103]
[1645165113683,2.06878572,2903.5,2903.1,0.90488103]
[1645165113684,0.55323026,2903.4,2903.1,0.90488103]
[1645165113883,0.55323026,2903.4,2903.2,0.90488103]
[1645165114083,0.55323026,2903.4,2903.3,0.90488103]
[1645165114286,0.55323026,2903.4,2903.0,0.90488103]
[1645165114483,0.55323026,2903.4,2903.3,0.90488103]
[1645165114732,0.55323026,2903.4,2902.9,0.90488103]
[1645165115128,0.55323026,2903.4,2902.8,1.55913063]
[1645165115332,0.55323026,2903.4,2902.9,0.90488103]
[1645165115666,0.55323026,2903.4,2903.0,0.90488103]
[1645165115828,0.55323026,2903.4,2903.1,0.90488103]
[1645165116030,0.55323026,2903.4,2903.2,0.90488103]
[1645165116229,0.55323026,2903.4,2902.8,5.05913063]
[1645165116432,0.55323026,2903.4,2902.9,0.90488103]
[1645165116731,0.55323026,2903.4,2903.2,0.00315884]
[1645165117132,0.67619977,2903.5,2903.2,0.00315884]
[1645165117334,0.55350909,2903.4,2903.2,0.00315884]
[1645165117535,0.67619977,2903.5,2903.2,0.84486118]
[1645165117737,0.67619977,2903.5,2903.3,4.40488103]
[1645165118040,0.67619977,2903.5,2903.4,4.40488103]
[1645165118479,0.67619977,2903.5,2903.4,0.90488103]
[1645165118911,0.67619977,2903.5,2903.2,0.6542496]
[1645165119381,0.67619977,2903.5,2903.3,0.00315875]
[1645165119585,0.67619977,2903.5,2903.3,0.90803978]
[1645165119782,0.67619977,2903.5,2903.4,0.90488103]
[1645165119982,1.22995714,2903.5,2903.4,0.90488103]
[1645165120592,1.22995714,2903.5,2903.3,0.00315878]
[1645165120784,0.55375737,2903.4,2903.3,0.00315878]
[1645165121283,0.55375737,2903.4,2903.2,0.90488103]
[1645165121484,0.55375737,2903.4,2903.3,0.90488103]
[1645165121985,0.55375737,2903.4,2903.2,0.90803984]
[1645165122229,0.55375737,2903.4,2903.3,0.90488103]
[1645165122632,0.55375737,2903.4,2903.2,0.00315884]
[1645165123632,0.55375737,2903.4,2903.0,0.6542496]
[1645165123832,0.55375737,2903.4,2903.2,0.00315884]
[1645165124833,0.55375737,2903.4,2903.1,0.6542496]
[1645165125132,0.55375737,2903.4,2903.2,0.00315884]
[1645165125984,0.55375737,2903.4,2903.1,0.6542496]
[1645165126175,0.55375737,2903.4,2903.2,0.00315884]
[1645165126376,0.55375737,2903.4,2903.2,0.65740844]
[1645165126778,0.55375737,2903.4,2903.3,0.90488103]
[1645165126981,0.55375737,2903.4,2903.3,4.40488103]
[1645165127181,0.67619977,2903.5,2903.3,4.40488103]
[1645165127182,0.67619977,2903.5,2903.3,0.90488103]
[1645165127433,4.0684748,2904.4,2903.4,10.53440405]
[1645165127434,0.5202748,2904.4,2903.4,10.53440405]
[1645165127582,0.5418822,2904.3,2904.1,0.86632127]
[1645165127780,0.5418822,2904.3,2904.1,1.64712127]
[1645165127982,1.14653454,2904.8,2904.2,0.90488103]
[1645165127983,1.16734044,2904.6,2904.2,0.90488103]
[1645165128181,0.54155943,2904.5,2904.2,0.90488103]
[1645165128383,0.54155943,2904.4,2904.2,0.90488103]
[1645165128589,0.65895604,2904.7,2903.7,0.66070444]
[1645165128590,0.54155943,2904.3,2903.7,0.66070444]
[1645165128783,2.51722933,2904.8,2903.7,0.66070444]
[1645165128784,0.54155943,2904.2,2903.8,0.91900742]
[1645165128983,0.54155943,2904.1,2903.8,0.91900742]
[1645165129182,0.54155943,2904.0,2903.8,0.91900742]
[1645165129382,0.54155943,2903.9,2903.8,0.91900742]
[1645165130031,0.54155943,2904.2,2903.8,0.91900742]
[1645165131834,0.54155943,2904.2,2903.9,0.91900742]
[1645165132030,0.54155943,2904.2,2904.0,0.91900742]
[1645165132230,0.54155943,2904.2,2904.1,0.91900742]
[1645165132636,1.69361792,2903.7,2903.5,0.00315883]
[1645165132837,0.54155943,2903.6,2903.5,0.00315883]
[1645165133241,0.54155943,2903.6,2903.5,0.92336821]
[1645165133482,0.54155943,2903.6,2903.5,0.91915688]
[1645165133682,0.54155943,2903.6,2903.5,0.00421133]
[1645165133889,0.54155943,2903.6,2903.4,0.92652689]
[1645165134182,0.54155943,2903.6,2903.5,0.91915688]
[1645165146445,0.54155943,2903.6,2903.5,1.21915688]
[1645165146856,0.54155943,2903.6,2903.5,0.91915688]
[1645165147046,0.46815214,2903.6,2903.5,0.91915688]
[1645165151495,0.46815214,2903.6,2903.5,1.21915688]
[1645165151700,0.67973746,2903.7,2903.5,1.21915688]
[1645165151896,0.67973746,2903.7,2903.5,0.3]
[1645165152096,0.67973746,2903.7,2903.4,0.96386312]
[1645165152528,0.67973746,2903.7,2903.4,0.96070444]
[1645165152735,0.67973746,2903.7,2903.4,0.96386312]
[1645165153135,0.67973746,2903.7,2903.4,0.30737001]
[1645165153334,0.67973746,2903.7,2903.4,0.00737001]
[1645165153535,0.67973746,2903.7,2903.4,0.00315868]
[1645165153735,0.67973746,2903.7,2903.3,0.00421133]
[1645165153937,0.67973746,2903.7,2903.4,0.00315868]
[1645165154934,0.67973746,2903.7,2903.3,0.30421133]
[1645165155136,0.67973746,2903.7,2903.4,0.00315868]
[1645165155987,0.67973746,2903.7,2903.3,0.30421133]
[1645165156386,0.67973746,2903.7,2903.4,0.00315868]
[1645165157192,0.67973746,2903.7,2903.3,0.30421133]
[1645165157392,0.67036319,2903.7,2903.3,0.30421133]
[1645165157594,0.67036319,2903.7,2903.4,0.00315868]
[1645165158594,0.67036319,2903.7,2903.3,0.00421133]
[1645165158895,0.67036319,2903.7,2903.4,0.00315868]
[1645165159755,0.67036319,2903.7,2903.3,0.00421133]
[1645165159950,0.67036319,2903.7,2903.4,0.00315868]
[1645165160954,0.67036319,2903.7,2903.3,0.66070444]
[1645165161258,0.67036319,2903.7,2903.4,0.00315868]
[1645165161855,0.67036319,2903.7,2903.4,0.65965179]
[1645165162059,0.67036319,2903.7,2903.4,0.65649311]
[1645165162257,0.67036319,2903.7,2903.4,0.65965179]
[1645165163255,0.67036319,2903.7,2903.4,0.65649311]
[1645165163488,0.67036319,2903.7,2903.4,0.65965179]
[1645165164487,0.67036319,2903.7,2903.4,0.65649311]
[1645165164694,0.67036319,2903.7,2903.4,0.65965179]
[1645165165092,0.67036319,2903.7,2903.4,0.00315868]
[1645165165693,0.67036319,2903.7,2903.3,0.96070444]
[1645165165892,0.67036319,2903.7,2903.4,0.00315868]
[1645165166792,0.67036319,2903.7,2903.3,0.96070444]
[1645165166993,0.67036319,2903.7,2903.6,0.84048573]
[1645165167249,1.21520673,2903.7,2903.6,0.84048573]
[1645165167450,1.21520673,2903.7,2903.6,1.75591893]
[1645165167650,7.1176,2904.3,2903.6,1.75591893]
[1645165167651,0.1721,2904.3,2903.7,5.0]
[1645165167848,0.96340943,2904.7,2903.7,5.65579049]
[1645165167849,0.1721,2904.7,2903.7,5.65579049]
[1645165168048,1.16856792,2904.8,2904.4,1.1892119]
[1645165168049,4.66856792,2904.8,2904.4,1.1892119]
[1645165168251,1.16856792,2904.8,2904.4,1.1892119]
[1645165168457,0.83427033,2905.0,2904.4,1.1892119]
[1645165168651,0.65901313,2904.9,2904.4,1.1892119]
[1645165168849,0.1752572,2905.0,2904.4,1.1892119]
[1645165168850,0.83427033,2905.0,2904.4,1.1892119]
[1645165169252,0.1721,2905.0,2904.4,1.1892119]
[1645165169451,0.17525751,2905.0,2904.4,1.1892119]
[1645165170551,0.1721,2905.0,2904.4,1.1892119]
[1645165170751,0.17525751,2905.0,2904.4,1.1892119]
[1645165171579,0.1721,2905.0,2904.4,1.4892119]
[1645165171780,2.14007741,2905.1,2904.4,1.4892119]
[1645165171981,0.00315751,2905.0,2904.4,1.4892119]
[1645165172179,0.00315751,2905.0,2904.4,1.1892119]
[1645165172783,3.14007741,2905.1,2904.4,1.1892119]
[1645165172986,0.1721,2905.0,2904.4,1.1892119]
[1645165173183,0.17525751,2905.0,2904.4,1.1892119]
[1645165173386,0.17525751,2905.0,2903.9,2.40569049]
[1645165173783,0.17525751,2905.0,2903.9,1.7499]
[1645165173984,0.1721,2905.0,2903.9,1.7499]
[1645165174384,0.1752574,2905.0,2903.9,1.7499]
[1645165175246,0.1721,2905.0,2904.5,0.92133782]
[1645165175439,0.1752574,2905.0,2904.5,0.92133782]
[1645165176443,0.1721,2905.0,2904.5,0.92133782]
[1645165176639,0.00315754,2905.0,2903.9,1.4499]
[1645165176841,0.00315754,2905.0,2903.9,1.7499]
[1645165177642,1.50907741,2905.1,2903.9,1.4499]
[1645165177845,0.1752574,2905.0,2904.1,0.9086075]
[1645165178040,3.6752574,2905.0,2904.1,1.2086075]
[1645165178779,3.6721,2905.0,2904.1,1.2086075]
[1645165178983,0.1721,2905.0,2904.1,1.2086075]
[1645165179183,0.00293267,2905.0,2904.1,1.2086075]
[1645165179586,0.00293267,2905.0,2904.6,1.03131443]
[1645165179786,0.00293267,2905.0,2903.9,1.7499]
[1645165179989,0.50907741,2905.1,2903.9,1.7499]
[1645165180396,0.00293262,2905.0,2903.9,1.7499]
[1645165180590,0.00293262,2905.0,2904.0,0.8609]
[1645165180787,0.00293262,2905.0,2904.3,0.86607581]
[1645165181188,0.50907741,2905.1,2904.3,0.86607581]
[1645165181589,0.00293271,2905.0,2904.3,0.86607581]
[1645165182432,0.50907741,2905.1,2904.3,0.86607581]
[1645165182834,0.00293271,2905.0,2904.3,0.86607581]
[1645165183637,0.50907741,2905.1,2904.3,0.86607581]
[1645165184035,0.00294788,2905.0,2904.3,0.86607581]
[1645165184834,0.50907741,2905.1,2904.3,0.86607581]
[1645165185237,0.00294788,2905.0,2904.3,0.86607581]
[1645165186078,0.50907741,2905.1,2904.3,0.86607581]
[1645165186278,0.00294788,2905.0,2904.3,0.86607581]
[1645165187288,0.50907741,2905.1,2904.3,1.16607581]
[1645165187485,0.00294686,2905.0,2904.3,1.16607581]
[1645165187687,0.00294686,2905.0,2904.4,0.93263095]
[1645165187889,0.52567407,2905.0,2904.4,0.93263095]
[1645165188089,0.00491176,2904.9,2904.5,0.93263095]
[1645165188292,0.52272721,2904.8,2904.5,0.93263095]
[1645165190433,0.52164682,2904.8,2904.5,0.93263095]
[1645165193039,0.52164682,2904.8,2904.7,0.85700673]
[1645165193892,0.52164682,2904.8,2904.7,1.15700673]
[1645165194292,0.00491176,2904.9,2904.7,1.15700673]
[1645165194491,0.50416565,2905.1,2904.9,0.66939394]
[1645165194694,0.00787656,2905.0,2904.9,0.66939394]
[1645165194892,0.00294696,2905.0,2904.9,0.66939394]
[1645165195696,0.50909525,2905.1,2904.9,0.66939394]
[1645165197096,0.51204438,2905.1,2904.9,0.66939394]
[1645165198141,0.50909525,2905.1,2904.9,0.66939394]
[1645165198339,0.51214525,2905.1,2904.9,0.66939394]
[1645165199341,0.50909525,2905.1,2904.9,0.66939394]
[1645165199646,0.51214525,2905.1,2904.9,0.66939394]
[1645165200443,0.50909525,2905.1,2904.9,0.96939394]
[1645165200847,0.51214525,2905.1,2904.9,0.96939394]
[1645165201687,0.50909525,2905.1,2904.9,0.96939394]
[1645165201886,0.51203757,2905.1,2904.9,0.66939394]
[1645165202894,0.50909525,2905.1,2904.9,0.66939394]
[1645165203091,0.51203757,2905.1,2904.9,0.66939394]
[1645165204093,0.50909525,2905.1,2904.9,0.96939394]
[1645165204294,0.51203757,2905.1,2904.9,0.96939394]
[1645165205349,0.50909525,2905.1,2904.9,0.96939394]
[1645165205570,0.51204484,2905.1,2904.9,0.96939394]
[1645165205751,0.51204484,2905.1,2904.9,0.66939394]
[1645165206455,0.50909525,2905.1,2904.9,0.66939394]
[1645165206649,0.51204484,2905.1,2904.9,0.66939394]
[1645165207670,0.50909525,2905.1,2904.9,0.66939394]
[1645165208058,0.51204484,2905.1,2904.9,0.66939394]
[1645165208879,0.50909525,2905.1,2904.9,0.66939394]
[1645165209086,0.51204435,2905.1,2904.9,0.66939394]
[1645165210081,0.50909525,2905.1,2904.9,0.66939394]
[1645165210281,0.51204435,2905.1,2904.9,0.66939394]
[1645165210483,0.53372696,2905.0,2904.9,0.66939394]
[1645165210882,0.53372696,2905.0,2904.9,1.5924991]
[1645165211484,0.53372696,2905.0,2904.9,1.59157468]